fUSD/lending_fUSD_20250623
["ID","MTS","AMOUNT","RATE_DAILY","PERIOD"]
[367231630,1750709444995,-490.0,0.00021975,2]
[367231632,1750709445005,-1952.64,0.00021975,2]
[367231634,1750709445014,-863.72,0.00021975,2]
[367231636,1750709445024,-864.13,0.00021975,2]
[367231638,1750709445034,-490.0,0.00021975,2]
[367231639,1750709445045,-490.0,0.00021975,2]
[367231658,1750709445205,-490.0,0.00021975,2]
[367231660,1750709445223,-490.0,0.00021975,2]
[367231662,1750709445233,-848.59,0.00021975,2]
[367231664,1750709445243,-1370.15,0.00021975,2]
[367231666,1750709445253,-490.0,0.00021975,2]
[367231668,1750709445262,-500.0,0.00021975,2]
[367231671,1750709445272,-500.0,0.00021975,2]
[367231673,1750709445282,-490.0,0.00021975,2]
[367231675,1750709445291,-584.77,0.00021975,2]
[367231677,1750709445303,-520.37,0.00021975,2]
[367231679,1750709445313,-637.27,0.00021975,2]
[367231681,1750709445323,-2837.61,0.00021975,2]
[367231683,1750709445333,-490.85,0.00021975,2]
[367231685,1750709445343,-1417.16,0.00021975,2]
[367231687,1750709445353,-3831.75,0.00021975,2]
[367231689,1750709445363,-490.0,0.00021975,2]
[367231691,1750709445373,-1604.15,0.00021975,2]
[367231693,1750709445383,-1516.44,0.00021975,2]
[367231695,1750709445393,-490.0,0.00021975,2]
[367231697,1750709445404,-1415.14,0.00021975,2]
[367231699,1750709445415,-490.0,0.00021975,2]
[367231701,1750709445427,-1013.95,0.00021975,2]
[367231703,1750709445437,-985.31,0.00021975,2]
[367231705,1750709445447,-880.07,0.00021975,2]
[367231707,1750709445458,-273.5390621,0.00021975,2]
[367231709,1750709445467,-490.0,0.00021975,2]
[367231711,1750709445477,-1251.77,0.00021975,2]
[367231713,1750709445487,-490.0,0.00021976,2]
[367231715,1750709445499,-490.86987747,0.00021976,2]
[367231717,1750709445509,-509.37,0.00021976,2]
[367231719,1750709445519,-597.09156115,0.00021976,2]
[367231721,1750709445529,-490.0,0.00021976,2]
[367231723,1750709445539,-263.39746538,0.00021976,2]
[367231725,1750709445550,-490.0,0.00021976,2]
[367231726,1750709445560,-490.0,0.00021976,2]
[367231727,1750709445570,-493.74126418,0.00021976,2]
[367231728,1750709445580,-490.0,0.00021976,2]
[367231729,1750709445590,-490.0,0.00021976,2]
[367231730,1750709445600,-755.82,0.00021976,2]
[367231732,1750709445610,-593.11,0.00021976,2]
[367231734,1750709445621,-490.0,0.00021976,2]
[367231736,1750709445631,-490.0,0.00021976,2]
[367231738,1750709445640,-490.0,0.00021976,2]
[367231740,1750709445650,-530.04,0.00021976,2]
[367231742,1750709445660,-490.0,0.00021976,2]
[367231744,1750709445672,-490.0,0.00021976,2]
[367231747,1750709445682,-490.0,0.00021976,2]
[367231749,1750709445692,-490.0,0.00021976,2]
[367231751,1750709445702,-490.0,0.00021976,2]
[367231753,1750709445713,-490.0,0.00021976,2]
[367231755,1750709445723,-490.0,0.00021976,2]
[367231757,1750709445734,-806.45,0.00021976,2]
[367231759,1750709445744,-490.0,0.00021976,2]
[367231761,1750709445754,-490.0,0.00021976,2]
[367231763,1750709445763,-499.1430909,0.00021976,2]
[367231765,1750709445774,-320.19120491,0.00021976,2]
[367231767,1750709445784,-490.0,0.00021976,2]
[367231769,1750709445793,-682.83,0.00021976,2]
[367231771,1750709445804,-490.0,0.00021976,2]
[367231773,1750709445814,-663.97,0.00021976,2]
[367231775,1750709445825,-490.0,0.00021976,2]
[367231777,1750709445834,-490.0,0.00021976,2]
[367231779,1750709445844,-490.0,0.00021976,2]
[367231781,1750709445854,-490.0,0.00021976,2]
[367231783,1750709445863,-174.72808349,0.00021976,2]
[367231785,1750709445873,-490.0,0.00021976,2]
[367231787,1750709445883,-490.0,0.00021976,2]
[367231790,1750709445893,-490.0,0.00021976,2]
[367231792,1750709445903,-527.89,0.00021976,2]
[367231794,1750709445913,-490.0,0.00021976,2]
[367231796,1750709445923,-490.0,0.00021976,2]
[367231798,1750709445932,-594.58,0.00021976,2]
[367231800,1750709445942,-490.0,0.00021976,2]
[367231802,1750709445952,-490.0,0.00021976,2]
[367231804,1750709445963,-490.0,0.00021976,2]
[367231806,1750709445972,-585.54,0.00021976,2]
[367231808,1750709445982,-500.0,0.00021976,2]
[367231810,1750709445992,-490.0,0.00021976,2]
[367231812,1750709446001,-678.53,0.00021976,2]
[367231814,1750709446011,-490.0,0.00021976,2]
[367231816,1750709446020,-490.0,0.00021976,2]
[367231818,1750709446030,-490.0,0.00021976,2]
[367231820,1750709446039,-576.96,0.00021976,2]
[367231822,1750709446051,-624.31,0.00021976,2]
[367231824,1750709446060,-1168.88,0.00021976,2]
[367231826,1750709446070,-634.06114308,0.00021976,2]
[367231828,1750709446079,-490.0,0.00021976,2]
[367231830,1750709446089,-490.0,0.00021976,2]
[367231832,1750709446098,-330.01625562,0.00021976,2]
[367231834,1750709446108,-1137.09,0.00021976,2]
[367231836,1750709446117,-490.0,0.00021976,2]
[367231838,1750709446127,-490.0,0.00021976,2]
[367231840,1750709446136,-676.99,0.00021976,2]
[367231842,1750709446146,-490.0,0.00021976,2]
[367231844,1750709446158,-490.0,0.00021976,2]
[367231846,1750709446167,-490.0,0.00021976,2]
[367231848,1750709446177,-187.56214549,0.00021976,2]
[367231850,1750709446186,-490.0,0.00021976,2]
[367231852,1750709446195,-490.0,0.00021976,2]
[367231854,1750709446205,-490.0,0.00021976,2]
[367231856,1750709446215,-507.22,0.00021976,2]
[367231858,1750709446224,-490.0,0.00021976,2]
[367231860,1750709446234,-490.0,0.00021976,2]
[367231862,1750709446244,-596.22602946,0.00021976,2]
[367231864,1750709446253,-893.15,0.00021976,2]
[367231866,1750709446263,-490.0,0.00021976,2]
[367231868,1750709446273,-490.0,0.00021976,2]
[367231871,1750709446282,-716.22,0.00021976,2]
[367231873,1750709446292,-1417.73,0.00021976,2]
[367231874,1750709446303,-300.0,0.00021976,2]
[367231876,1750709446312,-490.0,0.00021976,2]
[367231879,1750709446322,-551.95,0.00021976,2]
[367231881,1750709446332,-1056.76,0.00021976,2]
[367231883,1750709446342,-880.24,0.00021976,2]
[367231885,1750709446352,-490.0,0.00021976,2]
[367231887,1750709446361,-688.3,0.00021976,2]
[367231889,1750709446370,-490.0,0.00021976,2]
[367231891,1750709446380,-1603.72,0.00021976,2]
[367231893,1750709446389,-844.0,0.00021976,2]
[367231895,1750709446398,-490.0,0.00021976,2]
[367231897,1750709446409,-579.76,0.00021976,2]
[367231899,1750709446422,-1325.08,0.00021976,2]
[367231901,1750709446431,-490.0,0.00021976,2]
[367231903,1750709446440,-490.0,0.00021976,2]
[367231905,1750709446450,-490.0,0.00021976,2]
[367231907,1750709446459,-490.0,0.00021976,2]
[367231909,1750709446470,-490.0,0.00021976,2]
[367231911,1750709446480,-490.8886346,0.00021976,2]
[367231913,1750709446489,-970.76,0.00021976,2]
[367231915,1750709446499,-490.0,0.00021976,2]
[367231917,1750709446509,-490.0,0.00021976,2]
[367231919,1750709446518,-490.0,0.00021976,2]
[367231921,1750709446528,-490.0,0.00021976,2]
[367231923,1750709446537,-490.0,0.00021976,2]
[367231925,1750709446549,-490.0,0.00021976,2]
[367231928,1750709446560,-490.0,0.00021976,2]
[367231930,1750709446569,-1052.82,0.00021976,2]
[367231932,1750709446579,-546.78,0.00021976,2]
[367231934,1750709446589,-490.0,0.00021976,2]
[367231936,1750709446598,-490.0,0.00021976,2]
[367231938,1750709446608,-490.0,0.00021976,2]
[367231940,1750709446618,-1136.64,0.00021976,2]
[367231942,1750709446627,-1007.89,0.00021976,2]
[367231944,1750709446636,-767.36,0.00021976,2]
[367231946,1750709446646,-490.0,0.00021976,2]
[367231948,1750709446656,-694.16,0.00021976,2]
[367231950,1750709446665,-490.0,0.00021976,2]
[367231952,1750709446674,-490.0,0.00021976,2]
[367231954,1750709446684,-1033.78,0.00021976,2]
[367231956,1750709446693,-490.0,0.00021976,2]
[367231958,1750709446702,-678.8,0.00021976,2]
[367231960,1750709446712,-490.0,0.00021976,2]
[367231962,1750709446722,-490.0,0.00021976,2]
[367231964,1750709446731,-1007.61,0.00021976,2]
[367231966,1750709446741,-490.0,0.00021976,2]
[367231968,1750709446751,-603.67,0.00021976,2]
[367231970,1750709446759,-600.6,0.00021976,2]
[367231972,1750709446769,-1064.79,0.00021976,2]
[367231974,1750709446779,-806.2,0.00021976,2]
[367231976,1750709446788,-490.0,0.00021976,2]
[367231978,1750709446797,-490.0,0.00021976,2]
[367231980,1750709446807,-316.58259577,0.00021976,2]
[367231982,1750709446816,-490.0,0.00021976,2]
[367231984,1750709446826,-749.5,0.00021976,2]
[367231986,1750709446835,-490.0,0.00021976,2]
[367231988,1750709446844,-680.29,0.00021976,2]
[367231990,1750709446855,-480.0,0.00021976,2]
[367231992,1750709446865,-863.67,0.00021976,2]
[367231994,1750709446875,-490.0,0.00021976,2]
[367231996,1750709446884,-490.0,0.00021976,2]
[367231998,1750709446893,-621.75,0.00021976,2]
[367232000,1750709446903,-661.12,0.00021976,2]
[367232002,1750709446913,-490.0,0.00021976,2]
[367232004,1750709446923,-490.0,0.00021976,2]
[367232006,1750709446932,-490.0,0.00021976,2]
[367232008,1750709446941,-500.0,0.00021976,2]
[367232010,1750709446951,-490.0,0.00021976,2]
[367232012,1750709446960,-595.19,0.00021976,2]
[367232014,1750709446969,-490.0,0.00021976,2]
[367232016,1750709446979,-490.0,0.00021976,2]
[367232019,1750709446989,-660.35,0.00021976,2]
[367232021,1750709446998,-871.47,0.00021976,2]
[367232023,1750709447008,-490.0,0.00021976,2]
[367232024,1750709447018,-490.0,0.00021976,2]
[367232026,1750709447027,-939.55,0.00021976,2]
[367232029,1750709447037,-490.0,0.00021976,2]
[367232031,1750709447047,-490.0,0.00021976,2]
[367232033,1750709447056,-490.0,0.00021976,2]
[367232035,1750709447065,-490.0,0.00021976,2]
[367232037,1750709447075,-655.99,0.00021976,2]
[367232039,1750709447085,-490.0,0.00021976,2]
[367232041,1750709447094,-490.0,0.00021976,2]
[367232043,1750709447103,-927.04,0.00021976,2]
[367232045,1750709447112,-525.50218848,0.00021976,2]
[367232047,1750709447121,-471.91886687,0.00021976,2]
[367232049,1750709447130,-924.43,0.00021976,2]
[367232051,1750709447139,-490.0,0.00021976,2]
[367232053,1750709447148,-1187.51,0.00021976,2]
[367232055,1750709447158,-490.0,0.00021976,2]
[367232057,1750709447167,-490.0,0.00021976,2]
[367232059,1750709447176,-490.0,0.00021976,2]
[367232061,1750709447186,-820.63,0.00021976,2]
[367232063,1750709447195,-1112.88,0.00021976,2]
[367232065,1750709447203,-490.0,0.00021976,2]
[367232067,1750709447213,-573.4,0.00021976,2]
[367232069,1750709447223,-490.0,0.00021976,2]
[367232071,1750709447232,-541.61,0.00021976,2]
[367232073,1750709447242,-490.0,0.00021976,2]
[367232075,1750709447251,-1095.53,0.00021976,2]
[367232077,1750709447261,-490.0,0.00021976,2]
[367232079,1750709447270,-490.0,0.00021976,2]
[367232081,1750709447280,-915.9,0.00021976,2]
[367232083,1750709447290,-490.0,0.00021976,2]
[367232085,1750709447300,-490.0,0.00021976,2]
[367232087,1750709447310,-490.0,0.00021976,2]
[367232089,1750709447319,-490.0,0.00021976,2]
[367232091,1750709447329,-1468.38,0.00021976,2]
[367232093,1750709447338,-490.0,0.00021976,2]
[367232095,1750709447347,-602.96,0.00021976,2]
[367232097,1750709447356,-490.0,0.00021976,2]
[367232099,1750709447365,-615.6,0.00021976,2]
[367232101,1750709447375,-490.0,0.00021976,2]
[367232103,1750709447384,-490.0,0.00021976,2]
[367232105,1750709447394,-490.0,0.00021976,2]
[367232107,1750709447404,-490.0,0.00021976,2]
[367232109,1750709447414,-490.0,0.00021976,2]
[367232111,1750709447426,-925.77,0.00021976,2]
[367232113,1750709447437,-490.0,0.00021976,2]
[367232146,1750709447743,-1009.2,0.00021976,2]
[367232148,1750709447753,-526.17,0.00021976,2]
[367232150,1750709447763,-490.0,0.00021976,2]
[367232152,1750709447773,-247.72737305,0.00021976,2]
[367232154,1750709447783,-688.99,0.00021976,2]
[367232156,1750709447792,-490.0,0.00021976,2]
[367232158,1750709447805,-490.0,0.00021976,2]
[367232160,1750709447815,-913.86,0.00021976,2]
[367232162,1750709447825,-490.0,0.00021976,2]
[367232164,1750709447835,-490.0,0.00021976,2]
[367232166,1750709447845,-490.0,0.00021976,2]
[367232168,1750709447854,-490.0,0.00021976,2]
[367232170,1750709447864,-498.7,0.00021976,2]
[367232172,1750709447874,-490.0,0.00021976,2]
[367232174,1750709447883,-490.0,0.00021976,2]
[367232176,1750709447893,-807.13,0.00021976,2]
[367232178,1750709447902,-490.0,0.00021976,2]
[367232180,1750709447912,-490.0,0.00021976,2]
[367232182,1750709447921,-490.0,0.00021976,2]
[367232184,1750709447931,-1001.52,0.00021976,2]
[367232186,1750709447941,-490.0,0.00021976,2]
[367232188,1750709447950,-490.0,0.00021976,2]
[367232190,1750709447959,-619.03,0.00021976,2]
[367232192,1750709447968,-500.8926651,0.00021976,2]
[367232194,1750709447978,-490.0,0.00021976,2]
[367232196,1750709447987,-578.61,0.00021976,2]
[367232198,1750709447997,-583.43,0.00021976,2]
[367232200,1750709448006,-1383.55,0.00021976,2]
[367232202,1750709448016,-1173.96,0.00021976,2]
[367232204,1750709448026,-490.0,0.00021976,2]
[367232206,1750709448036,-490.0,0.00021976,2]
[367232208,1750709448045,-791.04,0.00021976,2]
[367232210,1750709448057,-1320.69,0.00021976,2]
[367232212,1750709448067,-679.48,0.00021976,2]
[367232214,1750709448077,-1053.54,0.00021976,2]
[367232216,1750709448087,-490.0,0.00021976,2]
[367232219,1750709448097,-618.28,0.00021976,2]
[367232221,1750709448106,-1857.56,0.00021976,2]
[367232223,1750709448116,-490.0,0.00021976,2]
[367232225,1750709448125,-490.0,0.00021976,2]
[367232227,1750709448136,-490.0,0.00021976,2]
[367232229,1750709448145,-1977.96,0.00021976,2]
[367232231,1750709448155,-490.0,0.00021976,2]
[367232232,1750709448164,-490.0,0.00021976,2]
[367232234,1750709448174,-490.0,0.00021976,2]
[367232237,1750709448183,-490.0,0.00021976,2]
[367232239,1750709448193,-490.0,0.00021976,2]
[367232241,1750709448203,-1392.86,0.00021976,2]
[367232243,1750709448212,-972.62,0.00021976,2]
[367232245,1750709448221,-354.45825199,0.00021976,2]
[367232247,1750709448232,-490.0,0.00021976,2]
[367232249,1750709448241,-2787.66,0.00021976,2]
[367232251,1750709448251,-524.762286,0.00021976,2]
[367232253,1750709448260,-526.65,0.00021976,2]
[367232255,1750709448270,-490.0,0.00021976,2]
[367232257,1750709448280,-651.76,0.00021976,2]
[367232259,1750709448289,-490.0,0.00021976,2]
[367232260,1750709448299,-490.0,0.00021976,2]
[367232262,1750709448309,-1093.43,0.00021976,2]
[367232264,1750709448318,-1350.86,0.00021976,2]
[367232266,1750709448328,-490.0,0.00021976,2]
[367232268,1750709448338,-713.25,0.00021976,2]
[367232270,1750709448347,-243.97615786,0.00021976,2]
[367232272,1750709448358,-1195.35,0.00021976,2]
[367232274,1750709448368,-1763.62,0.00021976,2]
[367232277,1750709448378,-1054.85,0.00021976,2]
[367232279,1750709448388,-490.0,0.00021976,2]
[367232281,1750709448398,-715.76,0.00021976,2]
[367232283,1750709448408,-490.0,0.00021976,2]
[367232285,1750709448423,-490.0,0.00021976,2]
[367232287,1750709448434,-490.0,0.00021976,2]
[367232289,1750709448445,-1018.97,0.00021976,2]
[367232291,1750709448456,-685.11,0.00021976,2]
[367232292,1750709448466,-752.33,0.00021976,2]
[367232294,1750709448477,-490.0,0.00021976,2]
[367232296,1750709448487,-1402.59,0.00021976,2]
[367232299,1750709448498,-573.24,0.00021976,2]
[367232300,1750709448508,-490.0,0.00021976,2]
[367232302,1750709448519,-1371.52,0.00021976,2]
[367232304,1750709448529,-490.0,0.00021976,2]
[367232307,1750709448539,-1067.95,0.00021976,2]
[367232309,1750709448550,-150.0,0.00021977,2]
[367232310,1750709448560,-1000.0,0.00021988,2]
[367232313,1750709448571,-219.51130452,0.00021988,2]
[367232314,1750709448581,-300.0,0.00021992,2]
[367232317,1750709448591,-250.0,0.00021992,2]
[367232318,1750709448601,-150.0,0.00021999,2]
[367232321,1750709448611,-219.51130452,0.00022045,2]
[367232323,1750709448621,-150.0,0.00022046,2]
[367232325,1750709448631,-150.0,0.00022054,2]
[367232326,1750709448642,-13251.44366204,0.00022056,2]
[367232329,1750709448652,-21427.66190458,0.00022058,2]
[367232331,1750709448662,-150.0,0.00022081,2]
[367232333,1750709448672,-150.0,0.00022085,2]
[367232334,1750709448682,-150.0,0.00022091,2]
[367232336,1750709448691,-1000.0,0.000221,2]
[367232338,1750709448701,-1000.0,0.000221,2]
[367232340,1750709448711,-852.0,0.000221,2]
[367232342,1750709448720,-219.51130452,0.00022102,2]
[367232344,1750709448730,-150.0,0.00022105,2]
[367232346,1750709448740,-540.25055448,0.0002215,2]
[367232348,1750709448750,-285.90428324,0.0002215,2]
[367232350,1750709448758,-219.51130452,0.00022158,2]
[367232352,1750709448768,-150.0,0.00022166,2]
[367232354,1750709448778,-150.0,0.00022194,2]
[367232356,1750709448788,-689.0,0.000222,6]
[367232358,1750709448797,-1000.0,0.000222,5]
[367232360,1750709448808,-1000.0,0.000222,5]
[367232362,1750709448818,-1000.0,0.000222,4]
[367232364,1750709448827,-1000.0,0.000222,3]
[367232366,1750709448837,-1000.0,0.000222,3]
[367232368,1750709448847,-1000.0,0.000222,4]
[367232370,1750709448857,-1000.0,0.000222,5]
[367232372,1750709448866,-1000.0,0.000222,6]
[367232374,1750709448876,-1000.0,0.000222,5]
[367232376,1750709448885,-151.0,0.000222,7]
[367232378,1750709448894,-151.0,0.000222,7]
[367232380,1750709448904,-151.0,0.000222,7]
[367232382,1750709448913,-177.163212,0.000222,7]
[367232384,1750709448922,-151.0,0.000222,7]
[367232386,1750709448932,-151.0,0.000222,7]
[367232388,1750709448941,-151.0,0.000222,7]
[367232390,1750709448950,-150.0,0.00022204,2]
[367232392,1750709448960,-219.51130452,0.00022215,2]
[367232394,1750709448969,-150.0,0.00022226,2]
[367232396,1750709448978,-3645.09,0.0002223,2]
[367232397,1750709448988,-13251.44366204,0.00022237,2]
[367232399,1750709448997,-21427.66190458,0.0002224,2]
[367232401,1750709449006,-490.0,0.00022248,2]
[367232403,1750709449017,-490.0,0.00022248,2]
[367232406,1750709449027,-490.0,0.00022248,2]
[367232408,1750709449037,-490.0,0.00022248,2]
[367232409,1750709449046,-490.0,0.00022248,2]
[367232412,1750709449057,-490.0,0.00022248,2]
[367232414,1750709449067,-490.0,0.00022248,2]
[367232416,1750709449078,-500.0,0.00022248,2]
[367232418,1750709449088,-490.0,0.00022248,2]
[367232419,1750709449098,-518.9,0.00022248,2]
[367232421,1750709449107,-684.14,0.00022248,2]
[367232423,1750709449117,-490.0,0.00022248,2]
[367232425,1750709449126,-490.0,0.00022248,2]
[367232427,1750709449137,-490.0,0.00022249,2]
[367232429,1750709449146,-210.0,0.00022249,2]
[367232431,1750709449155,-520.43,0.00022249,2]
[367232433,1750709449164,-490.0,0.00022249,2]
[367232435,1750709449174,-490.0,0.00022249,2]
[367232437,1750709449183,-490.0,0.00022249,2]
[367232439,1750709449193,-490.0,0.00022249,2]
[367232441,1750709449202,-490.0,0.00022249,2]
[367232443,1750709449212,-490.0,0.00022249,2]
[367232445,1750709449222,-490.0,0.00022249,2]
[367232447,1750709449231,-490.0,0.00022249,2]
[367232450,1750709449241,-490.0,0.00022249,2]
[367232451,1750709449251,-490.0,0.00022249,2]
[367232453,1750709449260,-490.0,0.00022249,2]
[367232455,1750709449271,-490.0,0.00022249,2]
[367232458,1750709449281,-490.0,0.00022249,2]
[367232460,1750709449290,-490.0,0.00022249,2]
[367232462,1750709449301,-490.0,0.00022249,2]
[367232464,1750709449311,-505.04,0.00022249,2]
[367232466,1750709449320,-490.0,0.00022249,2]
[367232468,1750709449334,-490.0,0.00022249,2]
[367232470,1750709449344,-490.0,0.00022249,2]
[367232472,1750709449353,-635.96,0.00022249,2]
[367232474,1750709449363,-250.0,0.00022249,2]
[367232476,1750709449373,-490.0,0.00022249,2]
[367232478,1750709449383,-490.0,0.00022249,2]
[367232480,1750709449393,-490.0,0.00022249,2]
[367232482,1750709449402,-808.67,0.00022249,2]
[367232484,1750709449414,-490.0,0.00022249,2]
[367232486,1750709449426,-490.0,0.00022249,2]
[367232488,1750709449436,-490.0,0.00022249,2]
[367232490,1750709449447,-490.0,0.00022249,2]
[367232492,1750709449456,-490.0,0.00022249,2]
[367232494,1750709449467,-490.0,0.00022249,2]
[367232496,1750709449476,-490.0,0.00022249,2]
[367232498,1750709449486,-490.0,0.00022249,2]
[367232500,1750709449497,-867.8,0.00022249,2]
[367232502,1750709449508,-499.67,0.00022249,2]
[367232504,1750709449517,-572.9,0.00022249,2]
[367232506,1750709449527,-531.45,0.00022249,2]
[367232508,1750709449536,-655.78,0.00022249,2]
[367232510,1750709449546,-490.0,0.00022249,2]
[367232513,1750709449558,-490.0,0.00022249,2]
[367232515,1750709449568,-490.0,0.00022249,2]
[367232517,1750709449577,-490.0,0.00022249,2]
[367232519,1750709449587,-490.0,0.00022249,2]
[367232521,1750709449597,-535.33,0.00022249,2]
[367232523,1750709449606,-490.0,0.00022249,2]
[367232525,1750709449615,-490.0,0.00022249,2]
[367232527,1750709449625,-683.66,0.00022249,2]
[367232529,1750709449635,-490.0,0.00022249,2]
[367232531,1750709449645,-982.43,0.00022249,2]
[367232533,1750709449654,-490.0,0.00022249,2]
[367232534,1750709449665,-663.71,0.00022249,2]
[367232536,1750709449675,-490.0,0.00022249,2]
[367232539,1750709449685,-490.0,0.00022249,2]
[367232541,1750709449695,-490.0,0.00022249,2]
[367232542,1750709449705,-576.29,0.00022249,2]
[367232544,1750709449714,-490.0,0.00022249,2]
[367232546,1750709449723,-681.37,0.00022249,2]
[367232549,1750709449733,-490.0,0.00022249,2]
[367232551,1750709449743,-888.63,0.00022249,2]
[367232553,1750709449753,-151.0,0.00022249,7]
[367232554,1750709449763,-490.0,0.00022249,2]
[367232557,1750709449772,-490.0,0.00022249,2]
[367232559,1750709449782,-490.0,0.00022249,2]
[367232561,1750709449792,-776.37,0.00022249,2]
[367232563,1750709449803,-631.28,0.00022249,2]
[367232565,1750709449812,-490.0,0.00022249,2]
[367232567,1750709449822,-490.0,0.00022249,2]
[367232569,1750709449832,-610.86,0.00022249,2]
[367232571,1750709449841,-219.752004,0.00022249,2]
[367232572,1750709449851,-490.0,0.00022249,2]
[367232574,1750709449860,-562.73,0.00022249,2]
[367232576,1750709449870,-762.837125,0.00022249,2]
[367232578,1750709449879,-490.0,0.00022249,2]
[367232580,1750709449889,-490.0,0.00022249,2]
[367232582,1750709449898,-490.0,0.00022249,2]
[367232584,1750709449907,-553.33,0.00022249,2]
[367232586,1750709449916,-151.0,0.00022249,7]
[367232588,1750709449926,-490.0,0.00022249,2]
[367232590,1750709449936,-410.396547,0.00022249,2]
[367232592,1750709449945,-798.35,0.00022249,2]
[367232593,1750709449954,-490.0,0.00022249,2]
[367232594,1750709449963,-635.77,0.00022249,2]
[367232595,1750709449972,-490.0,0.00022249,2]
[367232596,1750709449982,-550.53,0.00022249,2]
[367232597,1750709449991,-490.0,0.00022249,2]
[367232598,1750709450000,-490.0,0.00022249,2]
[367232599,1750709450010,-151.0,0.00022249,7]
[367232600,1750709450019,-490.0,0.00022249,2]
[367232601,1750709450028,-490.0,0.00022249,2]
[367232602,1750709450038,-660.7,0.00022249,2]
[367232603,1750709450047,-1380.59,0.00022249,2]
[367232604,1750709450058,-490.0,0.00022249,2]
[367232605,1750709450067,-490.0,0.00022249,2]
[367232606,1750709450077,-490.0,0.00022249,2]
[367232607,1750709450086,-490.0,0.00022249,2]
[367232608,1750709450095,-490.0,0.00022249,2]
[367232609,1750709450104,-490.0,0.00022249,2]
[367232610,1750709450113,-490.0,0.00022249,2]
[367232612,1750709450123,-490.0,0.00022249,2]
[367232624,1750709450238,-490.0,0.00022249,2]
[367232625,1750709450247,-490.0,0.00022249,2]
[367232626,1750709450256,-151.0,0.00022249,7]
[367232627,1750709450265,-490.0,0.00022249,2]
[367232628,1750709450275,-490.0,0.00022249,2]
[367232629,1750709450284,-490.0,0.00022249,2]
[367232630,1750709450293,-151.0,0.00022249,7]
[367232631,1750709450303,-490.0,0.00022249,2]
[367232632,1750709450312,-900.68,0.00022249,2]
[367232633,1750709450322,-151.0,0.00022249,7]
[367232634,1750709450331,-828.64,0.00022249,2]
[367232635,1750709450340,-151.0,0.00022249,7]
[367232636,1750709450350,-695.72,0.00022249,2]
[367232637,1750709450360,-490.0,0.00022249,2]
[367232638,1750709450368,-490.0,0.00022249,2]
[367232639,1750709450378,-550.46,0.00022249,2]
[367232640,1750709450387,-490.0,0.00022249,2]
[367232641,1750709450396,-490.0,0.00022249,2]
[367232643,1750709450406,-490.0,0.00022249,2]
[367232644,1750709450417,-151.0,0.00022249,7]
[367232645,1750709450427,-490.0,0.00022249,2]
[367232646,1750709450437,-736.37,0.00022249,2]
[367232647,1750709450446,-490.0,0.00022249,2]